bitfinex/quotes_ETHUSD_20250413
["timestamp","ask_amount","ask_price","bid_price","bid_amount"]
[1744519756706,6.19045,1615.4,1615.1,6.248]
[1744519756707,12.38118,1615.4,1615.1,6.248]
[1744519756911,6.19118,1615.2,1615.1,6.248]
[1744519757611,6.19178,1615.1,1614.8,7.0656]
[1744519757805,6.19178,1615.1,1614.8,8.391453]
[1744519758385,12.38358,1615.1,1614.8,8.391453]
[1744519759310,12.38358,1615.1,1614.8,7.573853]
[1744519760017,6.19195,1615.0,1614.8,7.573853]
[1744519760216,6.19195,1615.0,1614.8,6.248]
[1744519760920,6.96965,1615.0,1614.8,6.248]
[1744519761218,6.19233,1614.9,1614.8,6.248]
[1744519762325,12.38502,1614.9,1614.5,13.26125]
[1744519762616,6.19272,1614.8,1614.5,9.013144]
[1744519762798,12.38566,1614.8,1614.5,9.013144]
[1744519763116,6.19237,1614.9,1614.5,9.013144]
[1744519763284,6.19237,1614.9,1614.6,6.19346]
[1744519763713,6.19237,1614.9,1614.5,13.26127]
[1744519764017,12.38501,1614.9,1614.5,13.26127]
[1744519766419,6.19233,1614.9,1614.5,6.25]
[1744519766612,12.38684,1614.7,1614.5,6.25]
[1744519766917,6.19348,1614.6,1614.5,6.25]
[1744519767124,6.19389,1614.5,1614.3,53.069]
[1744519768302,13.20146,1614.7,1614.3,59.26358]
[1744519768502,6.1935,1614.6,1614.3,53.069]
[1744519768904,6.1935,1614.6,1614.3,59.21163503]
[1744519769106,6.19418,1614.5,1614.2,7.0272]
[1744519769306,12.38828,1614.5,1614.2,6.25]
[1744519769503,6.19463,1614.3,1614.1,0.02]
[1744519769713,6.19501,1614.2,1614.1,0.02]
[1744519769914,6.19463,1614.3,1614.1,0.02]
[1744519771400,7.00941,1614.2,1614.1,0.02]
[1744519771601,0.8144,1614.2,1614.1,0.02]
[1744519772043,7.00941,1614.2,1614.1,0.02]
[1744519774447,3.0,1614.4,1614.1,0.02]
[1744519774599,3.8144,1614.4,1614.1,0.02]
[1744519774798,0.8144,1614.4,1614.1,6.21539]
[1744519775003,0.8144,1614.4,1614.1,8.243186]
[1744519775436,0.8144,1614.4,1614.1,2.047796]
[1744519775603,0.8144,1614.4,1614.1,1.261096]
[1744519775799,0.8144,1614.4,1614.1,0.02]
[1744519776748,0.8144,1614.4,1614.1,6.21537]
[1744519776904,6.97374,1614.6,1614.1,6.21537]
[1744519777639,13.16745,1614.6,1614.1,6.21537]
[1744519778039,6.194,1614.5,1614.1,0.02]
[1744519778228,12.38821,1614.5,1614.1,0.02]
[1744519778429,6.19426,1614.4,1614.1,0.02]
[1744519778631,0.7802,1614.3,1614.1,0.02]
[1744519779031,6.97499,1614.3,1614.1,0.02]
[1744519779326,0.7802,1614.3,1614.1,0.02]
[1744519779908,9.16444781,1614.3,1614.1,0.02]
[1744519782230,6.97483,1614.3,1614.1,0.02]
[1744519782430,0.7802,1614.3,1614.1,0.02]
[1744519785322,10.02312,1614.5,1614.1,0.02]
[1744519786976,6.19431,1614.4,1614.1,0.02]
[1744519787128,0.8292,1614.3,1614.1,0.02]
[1744519793750,7.02386,1614.3,1614.1,0.02]
[1744519793954,3.0,1614.5,1614.1,0.7732]
[1744519794162,0.8292,1614.6,1614.1,0.7732]
[1744519794379,6.19392,1614.5,1614.1,0.7732]
[1744519796366,3.0,1614.5,1614.1,0.7732]
[1744519799086,3.0,1614.8,1614.3,0.7891]
[1744519799440,6.97863,1614.9,1614.3,6.98371]
[1744519799670,3.0,1614.8,1614.3,6.98371]
[1744519800066,3.0,1614.8,1614.4,6.19416]
[1744519800261,3.0,1614.8,1614.5,0.7891]
[1744519800467,0.7863,1614.9,1614.5,0.7891]
[1744519800859,2.18961781,1615.0,1614.5,0.7891]
[1744519801075,0.7871,1615.1,1614.6,6.19339]
[1744519802387,0.7871,1615.1,1614.5,6.98276]
[1744519802388,6.97867,1615.1,1614.5,6.98276]
[1744519802883,0.7871,1614.8,1614.5,0.7891]
[1744519803560,0.7871,1614.9,1614.5,0.7891]
[1744519804085,6.97943,1614.9,1614.5,0.7891]
[1744519804676,9.19158,1615.1,1614.6,0.825]
[1744519804846,9.19158,1615.1,1614.6,1.526859]
[1744519805047,11.38119781,1615.1,1614.6,1.526859]
[1744519805247,11.38119781,1615.1,1614.6,0.825]
[1744519805493,17.57298781,1615.1,1614.6,0.825]
[1744519805793,5.97671781,1615.1,1614.6,0.825]
[1744519805988,6.1921,1615.0,1614.6,0.825]
[1744519806852,12.16827781,1615.1,1614.6,0.825]
[1744519809485,18.36014781,1615.1,1614.6,0.825]
[1744519810092,6.19197,1615.0,1614.6,0.825]
[1744519810290,6.19238,1614.9,1614.6,0.825]
[1744519810596,6.97996,1614.8,1614.4,0.825]
[1744519810760,13.17305,1614.8,1614.4,0.825]
[1744519811161,6.19317,1614.7,1614.4,0.825]
[1744519811369,12.38651,1614.7,1614.4,0.825]
[1744519811574,6.19366,1614.6,1614.2,0.8148]
[1744519811986,6.98019,1614.5,1614.2,0.8148]
[1744519812187,9.16980781,1614.5,1614.1,0.8348]
[1744519812695,8.38445781,1614.3,1614.1,0.02]
[1744519812862,0.7863,1614.2,1614.1,0.02]
[1744519813678,3.7863,1614.2,1614.1,0.02]
[1744519816697,3.0,1614.2,1614.1,0.02]
[1744519816996,2.18961781,1614.3,1614.1,0.02]
[1744519817166,2.18961781,1614.5,1614.2,0.7539]
[1744519817686,3.0,1614.5,1614.2,0.7539]
[1744519818068,6.25,1614.6,1614.2,0.7539]
[1744519818271,3.0,1614.5,1614.2,0.7539]
[1744519818690,3.755,1614.5,1614.2,1.450828]
[1744519818910,3.755,1614.5,1614.2,0.7539]
[1744519820111,5.94461781,1614.5,1614.2,0.7539]
[1744519820609,3.755,1614.5,1614.2,0.7539]
[1744519821105,2.18961781,1614.4,1614.1,0.02]
[1744519821465,3.755,1614.5,1614.1,0.02]
[1744519825849,6.25,1614.6,1614.2,0.7654]
[1744519825993,6.25,1614.6,1614.2,1.463472]
[1744519826296,0.752,1614.4,1614.1,0.02]
[1744519831533,0.26287288,1614.3,1614.1,0.02]
[1744519841352,2.45249069,1614.3,1614.1,0.02]
[1744519841641,10.5817,1614.2,1614.1,0.02]
[1744519841841,10.83401838,1614.2,1614.1,0.02]
[1744519842343,17.02902838,1614.2,1614.1,0.02]
[1744519842830,17.5042529,1614.2,1614.1,0.02]
[1744519843352,16.7215529,1614.2,1614.1,0.02]
[1744519843541,17.5042529,1614.2,1614.1,0.02]
[1744519845464,10.5265429,1614.2,1614.1,0.02]
[1744519845756,9.50131838,1614.2,1614.1,0.02]
[1744519853381,0.25231838,1614.2,1614.1,0.02]
[1744519853529,0.25231838,1614.2,1614.1,0.8523]
[1744519853728,3.0,1614.4,1614.1,0.8523]
[1744519854232,0.20846668,1614.3,1614.1,0.8523]
[1744519866320,0.20846668,1614.3,1614.1,7.752184]
[1744519866490,0.20846668,1614.3,1614.2,7.01791]
[1744519866690,3.0,1614.8,1614.3,0.8229]
[1744519867204,0.21585148,1614.7,1614.3,0.8229]
[1744519867909,0.21585148,1614.7,1614.4,0.8229]
[1744519870993,3.0,1614.9,1614.4,0.8229]
[1744519871424,0.21597771,1614.8,1614.4,0.8229]
[1744519871725,3.0,1614.9,1614.4,0.8229]
[1744519872018,0.21544589,1614.7,1614.4,0.8229]
[1744519872217,0.21597771,1614.8,1614.4,0.8229]
[1744519872517,0.829,1614.8,1614.4,0.8229]
[1744519872723,0.21544589,1614.7,1614.4,0.8229]
[1744519872926,0.21544589,1614.7,1614.3,0.8229]
[1744519873220,0.829,1614.6,1614.1,0.8429]
[1744519873593,0.21438205,1614.5,1614.1,0.8429]
[1744519875123,0.829,1614.4,1614.1,0.02]
[1744519875474,0.21368617,1614.3,1614.1,0.02]
[1744519875692,0.829,1614.2,1614.1,0.02]
[1744519876097,4.59165427,1614.2,1614.1,0.02]
[1744519876302,13.48311614,1614.2,1614.1,0.02]
[1744519877128,19.67812614,1614.2,1614.1,0.02]
[1744519878027,0.21265427,1614.2,1614.1,6.2154]
[1744519878232,0.21265427,1614.2,1614.1,9.90314781]
[1744519878377,0.7644,1614.9,1614.3,6.19444]
[1744519878731,0.17742274,1614.8,1614.6,0.7969]
[1744519879223,5.35938958,1615.1,1614.6,0.7969]
[1744519879382,0.17689086,1614.7,1614.6,0.7969]
[1744519879578,5.35938958,1615.1,1614.6,0.7969]
[1744519879786,0.17689086,1614.7,1614.6,0.7969]
[1744519880304,0.55,1615.0,1614.6,0.7969]
[1744519880504,0.17689086,1614.7,1614.4,6.99095]
[1744519880816,3.55,1615.0,1614.4,8.309495]
[1744519881020,0.17635891,1614.6,1614.4,6.99095]
[1744519881221,3.55,1615.0,1614.4,6.99095]
[1744519881516,0.17795455,1614.9,1614.4,6.99095]
[1744519881819,0.17795455,1614.9,1614.4,0.7969]
[1744519882718,0.17795455,1614.9,1614.4,6.99095]
[1744519882930,0.17795455,1614.9,1614.5,7.654625]
[1744519883222,3.0,1615.1,1614.5,7.654625]
[1744519883429,3.0,1615.1,1614.5,6.95553]
[1744519883593,0.18183625,1615.0,1614.5,6.95553]
[1744519883993,3.7644,1615.2,1614.5,6.95553]
[1744519884199,0.18236793,1615.1,1614.5,0.7618]
[1744519885131,0.18236793,1615.1,1614.5,6.95565]
[1744519885426,0.18236793,1615.1,1614.6,0.7618]
[1744519889536,0.55,1615.0,1614.6,0.7618]
[1744519889897,0.1695984,1614.9,1614.6,0.7618]
[1744519892605,3.1695984,1614.9,1614.6,0.7618]
[1744519893426,0.1695984,1614.9,1614.6,0.7618]
[1744519893624,0.1695984,1614.9,1614.6,6.95495]
[1744519893816,0.1695984,1614.9,1614.7,0.695495]
[1744519894014,3.0,1615.1,1614.7,0.695495]
[1744519894216,0.16905874,1614.8,1614.6,6.95526]
[1744519894434,3.0,1615.1,1614.6,6.95526]
[1744519894736,3.0,1615.1,1614.6,0.7618]
[1744519894935,0.17020945,1615.0,1614.6,0.7618]
[1744519895106,0.72020945,1615.0,1614.6,0.7618]
[1744519896333,3.0,1614.9,1614.2,12.38987]
[1744519896508,3.781,1614.9,1614.3,0.7982]
[1744519896704,0.16914589,1614.8,1614.3,0.7982]
[1744519897440,0.16914589,1614.8,1614.3,6.99272]
[1744519897634,0.16914589,1614.8,1614.4,0.7982]
[1744519897841,3.55,1615.0,1614.4,0.7982]
[1744519898039,0.1692215,1614.9,1614.4,0.7982]
[1744519898247,0.781,1614.8,1614.4,0.7982]
[1744519898537,3.16881748,1614.7,1614.4,0.7982]
[1744519899150,2.73961781,1614.6,1614.2,0.7982]
[1744519899445,3.94680123,1614.5,1614.1,0.02]
[1744519900340,0.55,1614.2,1614.1,0.02]
[1744519900544,1.331,1614.2,1614.1,0.02]
[1744519900728,1.49520475,1614.2,1614.1,0.02]
[1744519901851,10.69021475,1614.2,1614.1,0.02]
[1744519903261,4.49520475,1614.2,1614.1,0.02]
[1744519904537,3.94520475,1614.2,1614.1,0.02]
[1744519904723,3.71420475,1614.2,1614.1,0.02]
[1744519905526,3.16420475,1614.2,1614.1,0.02]
[1744519907049,3.71420475,1614.2,1614.1,0.02]
[1744519907852,9.90921475,1614.2,1614.1,0.02]
[1744519908055,12.91903256,1614.2,1614.1,0.02]
[1744519908824,4.53440475,1614.2,1614.1,0.02]
[1744519910336,10.72941475,1614.2,1614.1,0.02]
[1744519911055,12.91903256,1614.2,1614.1,0.02]
[1744519911960,66.06003256,1614.2,1614.1,0.02]
[1744519912122,0.8167,1613.7,1613.3,0.7693]
[1744519912322,7.0597,1613.7,1613.3,0.7693]
[1744519912526,0.15415094,1613.6,1613.3,0.7693]
[1744519912957,7.0597,1613.7,1613.3,0.7693]
[1744519913157,0.15361823,1613.5,1613.3,0.7693]
[1744519913469,0.15308545,1613.4,1613.3,0.7693]
[1744519913636,7.0597,1613.7,1613.3,0.7693]
[1744519913836,0.15415094,1613.6,1613.3,0.7693]
[1744519914043,7.0597,1613.7,1613.3,0.7693]
[1744519914366,0.15415094,1613.6,1613.3,0.7693]
[1744519914660,7.0597,1613.7,1613.3,0.7693]
[1744519914862,0.15415094,1613.6,1613.3,0.7693]
[1744519915055,7.0597,1613.7,1613.3,0.7693]
[1744519915256,0.15445559,1613.6,1613.3,0.7693]
[1744519915454,7.0597,1613.7,1613.3,0.7693]
[1744519915765,7.0597,1613.7,1613.1,6.21918]
[1744519915766,3.70222209,1613.6,1613.1,0.7893]
[1744519915965,3.70222209,1613.6,1613.1,6.9885]
[1744519916170,3.70222209,1613.6,1613.3,0.7693]
[1744519916171,3.15222209,1613.6,1613.3,0.7693]
[1744519916764,0.15222209,1613.6,1613.3,6.96775]
[1744519916966,0.15222209,1613.6,1613.4,0.7693]
[1744519917168,3.0,1613.9,1613.4,0.7693]
[1744519917369,0.15438381,1613.5,1613.4,0.7693]
[1744519917569,3.0,1613.9,1613.4,0.7693]
[1744519917759,0.15499478,1613.5,1613.4,0.7693]
[1744519917956,3.0,1613.9,1613.4,0.7693]
[1744519918148,0.15499478,1613.5,1613.4,0.7693]
[1744519918349,3.0,1613.9,1613.4,0.7693]
[1744519918875,0.15659229,1613.8,1613.5,0.7693]
[1744519925287,0.15659229,1613.8,1613.5,6.96687]
[1744519925580,0.15659229,1613.8,1613.6,0.8325]
[1744519926648,0.15659229,1613.8,1613.7,6.94783]
[1744519926967,6.242,1614.1,1613.7,6.19693]
[1744519927170,6.242,1614.1,1613.8,0.7509]
[1744519930458,0.14495302,1614.0,1613.8,0.7509]
[1744519934187,0.90645302,1614.0,1613.6,0.8186]
[1744519934390,0.14495302,1614.0,1613.6,7.01579]
[1744519935431,3.14495302,1614.0,1613.6,0.8186]
[1744519935585,0.7615,1613.9,1613.6,0.8186]
[1744519936092,0.1447173,1613.8,1613.6,0.8186]
[1744519936713,0.1447173,1613.8,1613.4,6.19795]
[1744519937015,0.1447173,1613.8,1613.5,0.8211]
[1744519937924,0.55,1613.7,1613.3,0.8211]
[1744519938102,0.55,1613.4,1613.1,0.8411]
[1744519938419,0.13964596,1613.3,1613.1,0.8411]
[1744519938575,0.13964596,1613.3,1613.1,0.02]
[1744519938776,3.0,1613.2,1613.1,0.02]
[1744519938976,3.7566,1613.2,1613.1,0.02]
[1744519939177,10.6445104,1613.2,1613.1,0.02]
[1744519939815,10.6898104,1613.2,1613.1,0.02]
[1744519940184,17.51777216,1613.2,1613.1,0.02]
[1744519940585,3.0,1612.5,1612.2,0.7999]
[1744519940786,9.242,1612.5,1612.1,0.02]
[1744519941019,0.12757657,1612.4,1612.1,0.02]
[1744519944534,9.242,1612.5,1612.1,0.02]
[1744519945092,0.8097,1612.4,1612.1,0.02]
[1744519945294,3.0,1612.4,1612.1,0.02]
[1744519946189,6.245,1612.5,1612.1,0.02]
[1744519946429,6.245,1612.5,1612.2,6.20267]
[1744519946589,0.8097,1612.7,1612.2,6.20267]
[1744519946790,7.0547,1612.7,1612.1,6.22301]
[1744519947094,7.0547,1612.7,1612.1,0.02]
[1744519947095,3.0,1612.6,1612.1,0.02]
[1744519948545,9.20121,1612.6,1612.1,0.02]
[1744519948927,3.0,1612.6,1612.1,0.02]
[1744519949310,0.55,1612.5,1612.1,0.02]
[1744519949520,3.8097,1612.4,1612.1,0.02]
[1744519950103,6.246,1612.3,1612.1,0.02]
[1744519951253,3.55,1612.2,1612.1,0.02]
[1744519951457,7.0545,1612.6,1612.1,0.02]
[1744519951682,0.8085,1612.8,1612.3,6.2021]
[1744519951857,59.398,1613.0,1612.5,0.8107]
[1744519951858,6.246,1613.0,1612.5,0.8107]
[1744519952153,0.17361739,1612.9,1612.5,7.01224]
[1744519952512,0.17361739,1612.9,1612.5,0.8107]
[1744519953039,0.98211739,1612.9,1612.5,0.8107]
[1744519953240,6.7504,1612.8,1612.3,0.8107]
[1744519953555,3.0,1612.7,1612.3,0.8107]
[1744519953763,3.8085,1612.5,1612.1,0.8307]
[1744519953921,3.0,1612.5,1612.1,0.8307]
[1744519954115,6.246,1612.6,1612.3,6.20229]
[1744519954310,6.246,1612.6,1612.1,0.8307]
[1744519954311,6.246,1612.6,1612.2,12.40516]
[1744519954543,6.246,1612.6,1612.3,6.20209]
[1744519954856,6.246,1612.6,1612.3,12.4044]
[1744519955057,6.246,1612.6,1612.4,6.2019]
[1744519955254,6.246,1612.6,1612.5,6.20155]
[1744519955572,6.246,1612.6,1612.5,7.01225]
[1744519955770,6.246,1612.6,1612.5,0.8107]
[1744519957015,6.246,1612.6,1612.5,7.01225]
[1744519957215,7.0525,1612.9,1612.5,7.01225]
[1744519957709,7.22639006,1612.9,1612.5,7.01225]
[1744519959450,7.22639006,1612.9,1612.5,13.21358]
[1744519959617,6.41789006,1612.9,1612.5,13.21358]
[1744519960356,3.17389006,1612.9,1612.5,13.21358]
[1744519960865,0.17389006,1612.9,1612.5,13.21358]
[1744519961063,3.17389006,1612.9,1612.5,13.21358]
[1744519961237,3.0,1612.9,1612.5,13.21358]
[1744519961572,0.17545379,1612.8,1612.5,13.21358]
[1744519961920,3.0,1612.9,1612.5,13.21358]
[1744519962253,0.17545379,1612.8,1612.5,13.21358]
[1744519962632,6.244,1613.0,1612.7,6.20078]
[1744519963040,6.244,1613.0,1612.5,7.0122]
[1744519964453,6.244,1613.0,1612.4,6.2019]
[1744519964454,3.0,1612.9,1612.4,6.2019]
[1744519964626,0.7764,1612.8,1612.4,6.2019]
[1744519965155,0.7764,1612.8,1612.3,0.7923]
[1744519965789,0.7764,1612.8,1612.3,6.99455]
[1744519966085,0.7764,1612.8,1612.3,6.99442]
[1744519966289,0.7764,1612.8,1612.3,13.19659]
[1744519966649,0.7764,1612.8,1612.4,6.20189]
[1744519966854,3.0,1612.9,1612.4,12.40369]
[1744519968188,3.0,1612.9,1612.4,6.2018]
[1744519968696,3.0,1612.9,1612.3,0.7923]
[1744519968992,3.0,1612.9,1612.6,6.99536]
[1744519969486,3.0,1612.9,1612.6,0.7945]
[1744519969787,0.8109,1613.2,1612.5,0.7945]
[1744519969988,0.8109,1613.2,1612.6,6.20088]
[1744519970286,0.8109,1613.2,1612.7,6.20073]
[1744519970451,0.8109,1613.2,1612.7,6.20058]
[1744519970641,0.8109,1613.2,1612.8,6.20038]
[1744519970986,0.8109,1613.2,1612.7,6.20058]
[1744519971888,1.28364846,1613.2,1612.7,6.20058]
[1744519973994,1.28364846,1613.2,1612.6,6.20109]
[1744519974559,1.28364846,1613.2,1612.6,12.40205]
[1744519974761,0.8109,1613.2,1612.6,12.40205]
[1744519975309,0.55,1613.1,1612.5,0.7945]
[1744519975469,0.8109,1612.8,1612.3,6.99679]
[1744519975801,0.8109,1612.8,1612.1,6.264]
[1744519975802,0.17557305,1612.7,1612.2,12.40513]
[1744519975987,0.17557305,1612.7,1612.2,12.40498]
[1744519976156,0.11793994,1612.7,1612.2,12.40498]
[1744519976357,0.11793994,1612.7,1612.2,6.20249]
[1744519976595,10.0549,1612.8,1612.2,12.40498]
[1744519977054,0.11867631,1612.7,1612.2,12.40498]
[1744519977288,0.11867631,1612.7,1612.2,6.20249]
[1744519977484,10.0549,1612.8,1612.2,12.40501]
[1744519977674,10.0549,1612.8,1612.2,6.20249]
[1744519977874,0.14250662,1612.7,1612.2,6.20249]
[1744519978162,10.0549,1612.8,1612.2,6.20249]
[1744519978501,0.14250662,1612.7,1612.2,6.20249]
[1744519978997,10.0549,1612.8,1612.2,12.40501]
[1744519979295,0.8109,1612.6,1612.1,13.22048]
[1744519979495,0.8109,1612.6,1612.2,6.20268]
[1744519979697,0.14122699,1612.5,1612.2,12.40536]
[1744519980263,0.14122699,1612.5,1612.1,0.8145]
[1744519980476,0.14122699,1612.5,1612.4,6.20193]
[1744519980811,0.8109,1612.9,1612.5,6.20121]
[1744519980979,0.8109,1612.9,1612.6,6.201]
[1744519981305,6.244,1613.1,1612.7,6.20073]
[1744519981504,7.0466,1613.1,1612.8,6.20035]
[1744519981724,3.0,1613.0,1612.8,6.20035]
[1744519982369,3.0,1613.0,1612.7,7.01263]
[1744519982604,3.0,1613.0,1612.7,6.20073]
[1744519982809,3.0,1613.0,1612.7,12.40131]
[1744519983009,3.0,1613.0,1612.7,6.20058]
[1744519984321,3.0,1613.0,1612.5,7.01341]
[1744519984604,3.0,1613.0,1612.6,6.20095]
[1744519985012,3.0,1613.0,1612.6,12.4019]
[1744519985177,3.0,1613.0,1612.8,6.20036]
[1744519985378,6.244,1613.1,1612.9,6.20001]
[1744519986009,6.244,1613.1,1612.8,7.01226]
[1744519987211,6.244,1613.1,1612.1,0.02]
[1744519987212,0.55,1612.4,1612.1,0.02]
[1744519987414,5.19850194,1612.3,1612.1,0.02]
[1744519987618,9.793,1612.4,1612.1,0.02]
[1744519987619,6.793,1612.4,1612.1,0.02]
[1744519987929,3.55,1612.6,1612.1,6.223]
[1744519988146,3.7806,1612.8,1612.3,6.99889]
[1744519988296,0.7806,1612.8,1612.5,6.20125]
[1744519988635,13.1336,1613.0,1612.3,6.99921]
[1744519988836,3.0,1612.9,1612.3,0.7969]
[1744519989129,3.0,1612.9,1612.3,6.99916]
[1744519989288,3.0,1612.9,1612.3,8.381564]
[1744519990298,0.55,1612.6,1612.1,0.02]
[1744519990518,3.0,1612.4,1612.1,0.02]
[1744519992601,0.55,1612.3,1612.1,0.02]
[1744519992793,0.7975,1612.2,1612.1,0.02]
[1744519994334,3.0,1612.4,1612.1,0.02]
[1744519995536,7.0405,1612.5,1612.1,0.02]
[1744519997034,7.0405,1612.5,1612.1,6.22283]
[1744519997337,7.0405,1612.5,1612.1,0.02]
[1744519997832,3.0,1612.4,1612.1,0.02]
[1744519998929,7.0405,1612.5,1612.1,6.22274]
[1744519999276,6.243,1612.5,1612.1,0.02]
[1744519999418,3.0,1612.6,1612.1,0.02]
[1744519999616,3.0,1612.6,1612.1,6.22307]
[1744520000765,3.0,1612.6,1612.1,0.02]
[1744520000920,9.20116,1612.6,1612.2,0.7844]
[1744520001119,3.0,1612.4,1612.1,0.02]
[1744520001332,3.7672,1612.4,1612.1,0.02]
[1744520002343,6.20078,1612.7,1612.1,0.02]
[1744520002548,0.7672,1612.6,1612.1,6.22279]
[1744520002710,6.20042,1612.8,1612.2,6.20249]
[1744520002711,0.7672,1612.8,1612.2,6.20249]
[1744520002910,3.7672,1612.8,1612.3,6.96809]
[1744520006265,3.7672,1612.8,1612.4,6.20167]
[1744520006436,0.7748,1613.0,1612.5,6.20152]
[1744520006633,4.1231531,1613.1,1612.7,6.20043]
[1744520006838,4.1231531,1613.1,1613.0,0.7739]
[1744520007863,4.1231531,1613.1,1612.8,0.7739]
[1744520008069,4.1231531,1613.1,1612.8,6.97429]
[1744520008266,4.1231531,1613.1,1612.6,0.7739]
[1744520008573,11.0971931,1613.1,1612.6,0.7739]
[1744520008739,3.0,1613.0,1612.6,0.7739]
[1744520010685,3.8172,1613.3,1612.8,6.20025]
[1744520010887,0.8172,1613.3,1612.8,6.20025]
[1744520011074,0.8172,1613.3,1612.9,6.19996]
[1744520011277,3.0,1613.4,1612.9,7.02936]
[1744520011590,9.19812,1613.4,1612.9,0.8294]
[1744520013389,9.19812,1613.4,1612.9,1.532365]
[1744520013890,15.3965,1613.4,1612.9,0.8294]
[1744520014258,9.19812,1613.4,1612.9,0.8294]
[1744520014787,0.7679,1613.5,1612.9,0.8294]
[1744520014992,3.0,1613.5,1613.0,7.02901]
[1744520015168,59.93432,1613.6,1613.0,7.02901]
[1744520015367,3.0,1613.5,1613.0,8.351896]
[1744520015767,9.19774,1613.5,1613.0,2.152286]
[1744520016488,9.19774,1613.5,1613.0,8.351896]
[1744520016689,3.0,1613.5,1613.1,6.19922]
[1744520016988,3.0,1613.5,1613.0,8.351896]
[1744520018586,6.19865,1613.3,1613.0,0.8294]
[1744520018893,6.19931,1613.1,1612.8,0.793]
[1744520019079,6.19893,1613.2,1612.8,0.793]
[1744520020689,3.0,1613.2,1612.8,0.793]
[1744520020892,9.1989,1613.2,1612.8,0.793]
[1744520022398,3.0,1613.2,1612.8,0.793]
[1744520023308,9.19886,1613.2,1612.8,0.793]
[1744520025899,15.39795,1613.2,1612.8,0.793]
[1744520026301,6.19932,1613.1,1612.8,0.793]
[1744520026719,6.20017,1612.9,1612.6,0.793]
[1744520026919,6.98482,1612.8,1612.4,0.793]
[1744520027216,3.0,1612.7,1612.4,0.793]
[1744520028511,9.2008,1612.7,1612.4,0.793]
[1744520028713,6.20118,1612.6,1612.2,0.793]
[1744520029016,6.20194,1612.4,1612.1,0.02]
[1744520029814,12.40412,1612.4,1612.1,0.02]
[1744520031120,10.6744,1612.5,1612.1,0.02]
[1744520031121,3.0,1612.2,1612.1,0.02]
[1744520031808,9.2027,1612.2,1612.1,0.02]
[1744520032570,9.9764,1612.2,1612.1,0.02]
[1744520033542,3.7737,1612.2,1612.1,0.02]
[1744520034032,3.0,1612.2,1612.1,0.02]
[1744520035221,10.98263979,1612.2,1612.1,0.02]
[1744520039112,10.20893979,1612.2,1612.1,0.02]
[1744520039450,9.65893979,1612.2,1612.1,0.02]
[1744520039810,3.45623979,1612.2,1612.1,0.02]
[1744520041822,6.20196,1612.4,1612.1,0.02]
[1744520042027,3.0,1612.3,1612.1,0.02]
[1744520042215,3.0,1612.2,1612.1,0.02]
[1744520043916,3.0,1612.2,1612.1,0.8039]
[1744520044119,3.0,1612.2,1612.1,1.504619]
[1744520044467,6.34,1612.5,1612.1,7.707649]
[1744520044619,3.0,1612.4,1612.1,7.707649]
[1744520044813,3.0,1612.4,1612.1,0.8039]
[1744520045014,11.95370192,1612.2,1612.1,0.02]
[1744520045454,12.73800192,1612.2,1612.1,0.02]
[1744520047435,10.537,1612.2,1612.1,0.02]
[1744520049070,11.00742751,1612.2,1612.1,0.02]
[1744520050333,6.67312751,1612.2,1612.1,0.02]
[1744520050769,3.55,1612.2,1612.1,0.02]
[1744520050935,6.20198,1612.4,1612.1,0.02]
[1744520051137,0.55,1612.3,1612.1,0.02]
[1744520051427,3.55,1612.3,1612.1,0.02]
[1744520051898,3.0,1612.3,1612.1,0.02]
[1744520052068,13.32969,1612.6,1612.2,7.02884]
[1744520052277,6.317,1612.6,1612.3,6.20219]
[1744520052438,6.317,1612.6,1612.1,0.642343]
[1744520052439,4.1231531,1612.8,1612.4,7.02785]
[1744520052773,3.0,1612.7,1612.4,7.02785]
[1744520052983,3.0,1612.7,1612.4,8.02840695]
[1744520053926,3.0,1612.7,1612.4,0.8262]
[1744520054671,9.20097,1612.7,1612.4,0.8262]
[1744520055330,9.2008,1612.7,1612.4,0.8262]
[1744520055953,3.0,1612.7,1612.4,0.8262]
[1744520056355,3.0,1612.7,1612.4,7.02796]
[1744520056846,3.0,1612.7,1612.4,13.22966]
[1744520057488,3.55,1612.9,1612.4,0.8262]
[1744520057654,9.75081,1612.7,1612.4,0.8262]
[1744520058567,6.20174,1612.5,1612.2,0.8262]
[1744520058751,3.55,1612.5,1612.2,0.8262]
[1744520060262,3.55,1612.5,1612.2,7.02884]
[1744520060490,3.0,1612.5,1612.2,7.02874]
[1744520061000,9.20162,1612.5,1612.2,0.8262]
[1744520062070,3.0,1612.5,1612.2,0.8262]
[1744520064406,3.0,1612.5,1612.2,7.02874]
[1744520064898,3.0,1612.5,1612.2,0.8262]
[1744520065793,9.2017,1612.5,1612.2,0.8262]
[1744520066497,3.0,1612.5,1612.2,7.02889]
[1744520066699,3.0,1612.5,1612.2,7.02884]
[1744520067769,3.0,1612.5,1612.2,13.23133]
[1744520067969,3.0,1612.5,1612.2,7.02869]
[1744520068172,3.0,1612.5,1612.3,6.2023]